bitfinex-derivatives/quotes_ETHF0:USTF0_20250824
["timestamp","ask_amount","ask_price","bid_price","bid_amount"]
[1756066411686,3.2078,4735.9,4735.2,0.42244]
[1756066411893,3.2078,4736.4,4735.4,0.42243]
[1756066412097,0.9501,4737.0,4736.1,1.0981]
[1756066412098,3.2078,4737.0,4736.1,1.0981]
[1756066412389,0.9501,4737.8,4736.9,0.42229]
[1756066412588,4.1579,4737.2,4736.5,1.0981]
[1756066412894,4.1579,4737.2,4735.2,2.79317649]
[1756066412895,0.9501,4736.6,4735.5,1.0981]
[1756066413199,0.9501,4736.6,4734.5,3.2078]
[1756066413200,3.2078,4735.7,4734.5,3.2078]
[1756066413402,3.2078,4735.7,4734.5,2.17351]
[1756066413600,3.2078,4735.7,4734.5,1.751]
[1756066413802,1.5891,4736.1,4734.5,1.751]
[1756066413803,3.2078,4735.2,4734.5,1.751]
[1756066414296,3.2078,4735.2,4734.4,1.0981]
[1756066414495,3.2078,4734.7,4733.7,1.751]
[1756066414798,3.2078,4734.7,4733.5,1.0981]
[1756066415005,3.2078,4734.2,4733.5,1.0981]
[1756066415601,3.2078,4734.7,4733.5,1.0981]
[1756066415990,3.2078,4734.2,4733.5,1.0981]
[1756066416191,3.2078,4735.1,4733.6,2.78954611]
[1756066416397,3.2078,4735.1,4733.8,1.52067]
[1756066416601,3.2078,4735.5,4733.8,4.3059]
[1756066416803,3.2078,4735.5,4734.4,1.0981]
[1756066416996,3.2078,4735.5,4734.6,1.0271]
[1756066417199,3.2078,4736.0,4734.7,2.8491]
[1756066417501,3.2078,4736.0,4734.8,0.42248]
[1756066417697,3.2078,4736.0,4734.7,2.8491]
[1756066418199,3.2078,4736.6,4735.0,1.751]
[1756066418396,3.2078,4737.0,4735.3,4.3059]
[1756066418596,3.2078,4737.0,4736.1,1.0981]
[1756066419095,3.2078,4737.5,4736.3,1.0981]
[1756066419297,3.2078,4737.5,4736.4,0.42234]
[1756066419498,3.2078,4737.5,4736.3,1.0981]
[1756066419896,0.9501,4738.1,4737.1,1.0981]
[1756066420092,3.2078,4738.3,4736.6,1.751]
[1756066420300,3.2078,4738.3,4737.9,1.751]
[1756066420694,0.6199,4738.2,4737.9,1.751]
[1756066420992,1.568,4738.0,4736.6,1.0271]
[1756066421198,3.2078,4737.5,4736.6,1.0271]
[1756066421703,3.2078,4737.4,4736.6,1.0271]
[1756066422096,1.568,4738.0,4736.6,1.0271]
[1756066422400,3.2078,4737.2,4736.5,1.0981]
[1756066423901,3.2078,4737.2,4736.0,1.0981]
[1756066424300,3.2078,4736.2,4735.0,1.0981]
[1756066424498,3.2078,4735.7,4734.5,1.751]
[1756066424800,3.2078,4735.2,4734.3,1.0981]
[1756066425002,0.9501,4735.0,4733.7,1.751]
[1756066425194,0.9501,4735.0,4733.7,2.8491]
[1756066425801,3.2078,4734.2,4733.0,2.7781]
[1756066426001,0.9501,4734.6,4733.1,4.3059]
[1756066426196,0.9501,4734.6,4733.1,3.2078]
[1756066426407,0.0211,4734.3,4732.6,4.46348665]
[1756066426597,1.568,4733.0,4731.3,1.0981]
[1756066426803,3.2078,4732.2,4731.3,1.0981]
[1756066427597,0.002,4732.6,4731.0,3.2078]
[1756066427907,0.9501,4731.7,4731.0,3.2078]
[1756066428312,0.9501,4731.0,4729.0,1.0981]
[1756066428604,0.9712,4730.2,4728.2,1.0981]
[1756066428805,0.9712,4730.2,4727.8,3.2078]
[1756066428806,0.9501,4728.5,4727.2,1.0981]
[1756066429205,0.9501,4728.5,4727.2,4.3059]
[1756066429404,3.2078,4727.9,4727.2,1.0981]
[1756066429597,3.2078,4727.9,4726.4,3.2078]
[1756066429802,0.9501,4728.6,4727.8,2.8491]
[1756066430101,0.9501,4728.6,4727.8,1.0981]
[1756066431310,3.2078,4728.8,4727.9,1.0271]
[1756066431512,3.2078,4729.7,4728.3,1.0981]
[1756066431698,3.2078,4729.7,4728.5,0.42304]
[1756066431898,3.2078,4729.7,4728.4,1.751]
[1756066432106,4.1579,4729.7,4728.4,1.751]
[1756066432307,1.36228332,4734.9,4728.4,1.751]
[1756066432308,3.2078,4730.0,4728.7,1.751]
[1756066432500,3.2078,4730.0,4729.9,2.8491]
[1756066432909,0.9501,4730.7,4730.0,0.42291]
[1756066433309,0.9501,4730.7,4729.9,2.8491]
[1756066433517,0.9501,4730.7,4729.9,3.27201]
[1756066433705,30.438,4733.1,4729.9,3.27201]
[1756066433706,3.2078,4731.3,4730.0,3.88279576]
[1756066434018,0.9501,4732.0,4730.1,1.0981]
[1756066434019,3.2078,4730.7,4730.1,1.0981]
[1756066434210,3.2078,4731.6,4730.2,1.751]
[1756066434415,3.2078,4731.9,4730.2,1.751]
[1756066434613,3.2078,4731.9,4730.4,3.8762]
[1756066434808,3.2078,4732.5,4731.0,3.2078]
[1756066435004,0.9501,4732.8,4731.3,1.751]
[1756066435312,3.2078,4733.0,4732.0,0.42273]
[1756066435509,3.2078,4733.0,4732.1,2.8491]
[1756066436102,0.9501,4734.5,4731.5,3.2078]
[1756066436302,0.9501,4734.5,4731.3,1.751]
[1756066436303,3.2078,4734.8,4733.5,2.8491]
[1756066436507,0.9501,4735.5,4733.6,1.751]
[1756066436812,0.9501,4735.5,4733.7,1.0981]
[1756066437410,0.9501,4735.5,4733.8,1.0271]
[1756066437714,3.2078,4737.0,4735.2,2.1982]
[1756066437908,0.9481,4737.1,4735.2,2.1982]
[1756066437909,3.2078,4736.4,4735.2,2.1982]
[1756066438109,0.9481,4736.3,4735.2,1.1493]
[1756066438406,0.9481,4736.3,4734.3,4.0429]
[1756066438805,0.9481,4736.3,4734.3,2.8936]
[1756066439005,3.2078,4735.9,4734.6,1.1493]
[1756066439516,0.9481,4736.3,4734.6,1.1493]
[1756066439517,3.2078,4735.4,4734.6,1.1493]
[1756066440413,0.9692,4736.3,4734.6,5.1493]
[1756066440414,3.2078,4736.1,4734.6,5.1493]
[1756066440614,3.2078,4737.0,4734.8,2.994]
[1756066440813,3.2078,4737.5,4736.8,2.1982]
[1756066441009,3.2078,4739.0,4737.9,0.4222]
[1756066441212,3.2078,4739.0,4737.0,1.05571]
[1756066441406,3.2078,4739.9,4738.5,3.2078]
[1756066441607,3.2078,4740.4,4738.5,3.35920334]
[1756066441813,0.9671,4742.7,4740.0,1.0489]
[1756066442013,0.52778567,4742.0,4739.9,1.1493]
[1756066442217,1.36228332,4743.4,4739.5,30.432]
[1756066442218,1.36228332,4743.5,4741.0,21.09643]
[1756066442520,0.21342376,4746.9,4745.3,0.42155]
[1756066442714,0.21342376,4746.9,4745.7,2.5241]
[1756066442907,1.7726,4747.2,4745.7,2.5241]
[1756066443107,0.9671,4747.9,4745.7,2.5241]
[1756066443108,2.7397,4747.9,4745.7,2.9456]
[1756066443413,2.7397,4747.9,4745.7,2.5241]
[1756066443414,0.021,4747.4,4745.7,2.5241]
[1756066443611,2.7397,4747.3,4745.8,2.79882121]
[1756066444015,2.7397,4747.3,4745.7,1.1493]
[1756066444208,0.9671,4746.7,4744.7,1.1493]
[1756066444408,0.9671,4746.7,4744.8,1.3748]
[1756066444613,1.7726,4746.8,4745.1,2.1982]
[1756066444813,1.7726,4746.8,4744.9,2.76386407]
[1756066444814,1.0,4747.5,4745.7,1.3748]
[1756066445024,1.0,4747.5,4745.2,0.42155]
[1756066445025,0.9671,4747.4,4745.9,1.1493]
[1756066445323,1.0,4747.5,4746.2,2.1982]
[1756066445815,1.0,4747.5,4746.3,2.6895896]
[1756066446116,0.42138,4747.2,4746.3,2.6895896]
[1756066446310,3.62918,4747.3,4746.2,1.1493]
[1756066446614,0.9671,4747.1,4745.5,3.2078]
[1756066447118,1.0,4747.5,4744.7,3.2078]
[1756066447119,1.7726,4745.9,4744.7,3.2078]
[1756066447720,0.42153,4745.5,4744.7,3.2078]
[1756066447922,1.7726,4745.4,4744.7,3.2078]
[1756066448314,2.7397,4745.0,4743.7,1.1493]
[1756066448520,0.42159,4744.9,4743.7,1.1493]
[1756066449017,2.7397,4745.0,4743.7,1.1493]
[1756066449214,1.7726,4745.0,4743.8,2.71075268]
[1756066449415,1.7726,4745.0,4743.7,1.1493]
[1756066449720,0.42165,4744.2,4742.8,1.1493]
[1756066450120,3.2078,4743.4,4742.8,1.1493]
[1756066450415,3.2078,4744.1,4742.9,2.69694808]
[1756066450611,3.2078,4744.1,4742.8,4.3571]
[1756066451514,2.7607,4743.5,4741.9,1.1493]
[1756066451711,2.7607,4743.5,4741.3,3.2078]
[1756066451712,1.7726,4743.3,4741.3,3.2078]
[1756066451915,1.7726,4743.1,4741.3,3.2078]
[1756066452111,0.021,4743.0,4741.3,3.2078]
[1756066452313,3.8815,4742.9,4741.3,3.2078]
[1756066452718,1.7726,4742.8,4741.1,1.1493]
[1756066452918,2.1299,4742.9,4740.2,4.3571]
[1756066452919,0.021,4742.3,4740.2,4.3571]
[1756066453117,2.7397,4742.4,4740.2,4.3571]
[1756066453118,0.9671,4742.1,4740.2,4.3571]
[1756066453315,1.7726,4742.0,4740.2,4.3571]
[1756066453712,1.7726,4741.8,4740.2,4.3571]
[1756066453914,1.7726,4741.8,4739.6,3.2078]
[1756066453915,2.7397,4741.4,4739.6,3.2078]
[1756066454122,2.1089,4740.8,4739.4,1.1493]
[1756066454423,1.7936,4740.7,4738.4,1.0489]
[1756066454619,1.7726,4740.5,4738.4,1.0489]
[1756066454924,1.7726,4740.5,4738.5,2.78300797]
[1756066455124,1.7726,4740.5,4738.4,1.0489]
[1756066455527,1.7726,4740.5,4738.5,3.92893277]
[1756066455727,1.7726,4740.5,4738.7,0.42213]
[1756066455922,1.7726,4740.5,4738.9,1.0489]
[1756066456119,3.2078,4740.6,4739.7,1.1493]
[1756066456324,4.9804,4741.5,4739.8,1.0489]
[1756066456518,1.1418,4741.0,4738.7,2.73983001]
[1756066456718,3.2078,4739.4,4737.4,1.1493]
[1756066457025,31.391,4741.0,4737.8,3.2078]
[1756066457026,4.9804,4738.9,4737.8,3.2078]
[1756066457222,1.7726,4738.5,4736.7,3.2078]
[1756066457419,4.1749,4738.4,4736.7,3.2078]
[1756066457620,1.7726,4738.3,4736.6,1.1493]
[1756066457831,0.9671,4738.2,4736.6,1.1493]
[1756066458030,1.7726,4737.7,4736.1,3.2078]
[1756066458217,3.2078,4737.3,4736.1,3.2078]
[1756066458424,3.2078,4737.3,4736.1,4.2567]
[1756066458624,3.2078,4737.3,4736.1,4.67906]
[1756066458825,3.2078,4737.3,4736.1,4.2567]
[1756066459026,3.2078,4737.3,4736.6,1.1493]
[1756066459227,4.9804,4738.3,4736.7,3.2078]
[1756066459426,4.9804,4738.3,4737.1,0.42227]
[1756066459632,4.9804,4738.3,4737.4,1.1493]
[1756066459826,3.2078,4738.3,4737.4,1.1493]
[1756066460629,3.2078,4740.6,4740.3,1.0489]
[1756066460836,1.7726,4741.1,4740.1,3.2078]
[1756066461133,2.1089,4741.6,4740.6,3.2078]
[1756066461134,1.1418,4741.6,4740.6,3.2078]
[1756066461629,1.7726,4741.5,4740.6,3.2078]
[1756066461827,1.7726,4741.5,4741.1,3.2078]
[1756066462028,3.8815,4742.5,4741.6,0.42188]
[1756066462330,2.7397,4743.3,4742.0,0.42184]
[1756066462533,1.7726,4743.3,4741.9,1.0489]
[1756066462735,3.2078,4742.6,4741.6,3.2078]
[1756066462940,3.8815,4742.5,4741.6,3.2078]
[1756066463130,1.1418,4742.0,4740.7,1.0489]
[1756066463330,1.1418,4741.7,4740.4,3.2078]
[1756066463836,1.1418,4742.6,4741.4,1.0489]
[1756066464129,2.9144,4743.6,4741.8,1.0489]
[1756066464335,3.2078,4743.2,4741.5,3.2078]
[1756066464528,2.9144,4743.1,4741.5,3.2078]
[1756066465031,3.2078,4742.7,4741.5,3.2078]
[1756066465233,0.42188,4741.6,4740.4,3.2078]
[1756066465427,0.9671,4741.3,4740.4,3.2078]
[1756066465632,0.42192,4741.2,4740.4,3.2078]
[1756066465827,3.2288,4742.2,4740.4,3.2078]
[1756066465828,2.9144,4740.5,4740.4,3.2078]
[1756066466231,2.9144,4740.5,4739.2,1.59706896]
[1756066466427,2.9144,4740.5,4739.1,0.54816896]
[1756066466732,3.2078,4741.2,4738.9,0.54816896]
[1756066466733,1.7726,4740.2,4738.9,0.54816896]
[1756066466935,0.42206,4739.7,4738.8,0.54816896]
[1756066467137,0.42207,4739.5,4738.8,0.54816896]
[1756066467331,2.9144,4739.3,4739.1,0.54816896]
[1756066467540,2.9144,4739.3,4739.0,0.54816896]
[1756066467729,0.9671,4739.4,4739.0,0.54816896]
[1756066467730,1.094,4740.4,4739.0,0.54816896]
[1756066467934,1.0045,4741.2,4739.6,0.3057]
[1756066468137,0.42185,4742.0,4740.2,0.422]
[1756066468333,4.2123,4742.3,4740.7,1.1783]
[1756066468334,3.2078,4742.3,4740.7,1.1783]
[1756066468536,2.9417,4743.0,4741.5,0.9741]
[1756066468740,2.9417,4743.0,4741.9,0.54816896]
[1756066468941,3.2078,4743.8,4742.1,1.82796896]
[1756066469234,3.2078,4743.7,4742.6,0.42178]
[1756066469434,3.2078,4743.7,4743.2,0.42173]
[1756066469634,2.9417,4746.4,4743.7,0.413]
[1756066469836,2.9417,4746.4,4744.4,0.413]
[1756066470037,3.9462,4746.1,4744.3,3.2078]
[1756066470334,2.9627,4745.3,4743.1,3.2078]
[1756066470536,1.094,4744.7,4743.1,3.2078]
[1756066471440,1.094,4744.5,4743.1,3.2078]
[1756066471645,3.2078,4743.9,4742.2,3.9474341]
[1756066471837,2.9417,4743.7,4742.2,3.2078]
[1756066472034,2.9417,4743.7,4742.2,4.3692541]
[1756066472241,2.9417,4743.7,4742.3,0.4129]
[1756066472538,2.8522,4743.1,4742.2,3.2078]
[1756066472737,0.021,4742.7,4741.7,3.2078]
[1756066472940,2.0985,4742.0,4740.7,0.7396341]
[1756066473145,1.8477,4741.9,4740.4,0.4129]
[1756066473339,7.154,4741.6,4739.4,0.7396341]
[1756066473537,1.094,4741.4,4739.6,0.7396341]
[1756066473738,1.094,4741.2,4739.5,0.7396341]
[1756066473943,3.2078,4740.3,4739.5,0.7396341]
[1756066474243,3.2078,4740.3,4739.0,3.2078]
[1756066474244,4.3018,4741.2,4739.6,0.7396341]
[1756066474451,4.3018,4741.2,4740.3,0.4129]
[1756066474452,1.094,4741.2,4740.3,0.4129]
[1756066474649,1.8477,4742.1,4740.8,0.42194]
[1756066474650,1.094,4742.0,4740.8,0.42194]
[1756066474849,1.094,4742.0,4740.3,0.4129]
[1756066475144,2.9417,4741.8,4739.8,0.7396341]
[1756066475343,1.0045,4741.5,4739.8,0.7396341]
[1756066475546,1.094,4741.4,4740.0,0.7396341]
[1756066475741,1.094,4741.4,4739.9,0.7396341]
[1756066476138,1.094,4741.4,4740.1,0.7396341]
[1756066476348,1.094,4741.4,4740.1,3.9474341]
[1756066476548,1.094,4741.4,4740.1,3.2078]
[1756066476751,1.094,4741.4,4740.2,0.7396341]
[1756066477450,1.094,4741.4,4740.4,0.7396341]
[1756066477746,1.8477,4741.3,4740.4,0.7396341]
[1756066477954,1.8477,4741.3,4740.5,0.7396341]
[1756066478253,1.094,4741.2,4741.1,0.7396341]
[1756066478444,1.094,4742.0,4741.0,4.31725116]
[1756066478644,2.9417,4742.5,4741.5,3.2078]
[1756066478845,2.9417,4742.5,4741.6,0.74926537]
[1756066479148,3.9462,4742.4,4742.3,3.2078]
[1756066479651,2.9627,4742.0,4740.5,1.10945116]
[1756066479947,1.3347616,4748.2,4740.0,1.10945116]
[1756066479948,1.0045,4740.5,4740.0,1.10945116]
[1756066480149,2.0985,4740.3,4740.1,1.10945116]
[1756066480349,2.9417,4740.2,4739.6,1.47926821]
[1756066480545,1.8477,4740.9,4739.9,1.47926821]
[1756066480755,1.8477,4740.9,4740.0,4.3339277]
[1756066481152,1.094,4740.8,4740.0,4.3339277]
[1756066481350,1.8477,4740.9,4740.1,4.7559377]
[1756066481649,3.2078,4741.4,4740.3,1.1261277]
[1756066481855,1.8477,4741.2,4740.4,1.1261277]
[1756066482047,1.8477,4741.2,4740.2,1.1261277]
[1756066482048,1.094,4741.1,4740.2,1.1261277]
[1756066482249,1.094,4741.1,4740.4,1.1261277]
[1756066482443,1.8477,4741.2,4740.5,1.1261277]
[1756066482650,3.2078,4741.4,4740.6,1.1261277]
[1756066482855,3.2078,4741.4,4740.7,1.1261277]
[1756066483156,3.2078,4741.4,4740.8,1.1261277]
[1756066483567,3.2078,4741.4,4741.1,1.8053]
[1756066483864,1.0045,4741.3,4740.5,1.1261277]
[1756066484060,3.2078,4741.4,4740.6,1.1261277]
[1756066484262,3.2078,4741.4,4740.7,1.1261277]
[1756066484562,1.8477,4742.5,4741.3,0.4219]
[1756066484758,1.8477,4742.5,4741.2,3.9577]
[1756066485059,1.8477,4742.5,4741.2,5.0838277]
[1756066485564,1.8477,4742.5,4741.2,3.9577]
[1756066485767,2.9417,4742.2,4740.9,1.1261277]
[1756066486072,30.381,4742.9,4740.5,1.1261277]
[1756066486073,2.9417,4741.6,4740.5,1.1261277]
[1756066486359,1.094,4741.1,4740.2,1.1261277]
[1756066486561,1.094,4741.1,4739.5,3.2078]
[1756066486562,0.021,4741.0,4740.1,1.1261277]
[1756066486763,2.9417,4740.8,4739.6,1.1261277]
[1756066486955,3.9462,4740.8,4739.8,1.1261277]
[1756066487156,3.9462,4740.8,4739.9,1.1261277]
[1756066487668,1.8477,4740.8,4740.1,1.1261277]
[1756066487857,1.8477,4740.8,4739.5,6.49236821]
[1756066487858,1.8477,4740.8,4740.0,1.1261277]
[1756066488058,2.0985,4740.6,4740.0,1.1261277]
[1756066488259,1.8477,4740.5,4739.8,1.1261277]
[1756066488463,1.8477,4740.5,4739.9,1.1261277]
[1756066488763,1.8477,4740.5,4739.8,1.1261277]
[1756066488965,1.8477,4740.5,4739.9,1.1261277]
[1756066489266,1.8477,4740.5,4740.2,1.1261277]
[1756066489462,0.021,4741.4,4739.6,1.47926821]
[1756066489463,1.094,4742.0,4740.5,1.1783]
[1756066489654,3.2078,4742.2,4741.4,0.42189]
[1756066489856,3.2078,4742.9,4742.0,0.9741]
[1756066490267,3.2078,4742.9,4741.7,1.8053]
[1756066490467,3.2078,4742.9,4741.9,0.9741]
[1756066490770,1.094,4745.7,4744.5,0.4129]
[1756066491070,1.094,4745.7,4742.4,1.84908526]
[1756066491071,1.0255,4745.3,4743.9,1.1309134]
[1756066491255,1.094,4745.0,4743.8,1.1309134]
[1756066491459,2.0985,4744.5,4743.5,1.1309134]
[1756066491659,1.094,4744.4,4743.4,1.1309134]
[1756066492461,2.9417,4745.4,4744.2,0.42164]
[1756066492666,1.8477,4745.4,4744.0,0.4129]
[1756066492960,1.0255,4745.2,4744.0,1.1309134]
[1756066493164,1.094,4744.9,4743.9,1.1309134]
[1756066494565,1.094,4744.9,4744.1,1.1309134]
[1756066494755,3.2078,4745.9,4744.6,0.42161]
[1756066494960,3.2078,4745.9,4744.8,1.8053]
[1756066495155,1.094,4746.0,4744.8,1.8053]
[1756066495470,1.094,4745.9,4744.7,0.4129]
[1756066495764,1.094,4745.8,4744.0,3.2078]
[1756066495960,2.9417,4745.0,4743.0,1.8053]
[1756066496157,1.115,4744.2,4742.6,4.71568453]
[1756066496364,1.094,4744.2,4743.1,1.8053]
[1756066496560,1.0255,4744.2,4742.8,4.24349071]
[1756066496766,1.0255,4744.2,4742.7,2.73560618]
[1756066496767,0.021,4743.4,4742.3,1.50788453]
[1756066496963,1.094,4743.1,4742.3,1.50788453]
[1756066497163,1.094,4743.1,4742.0,3.2078]
[1756066497667,1.094,4743.1,4742.0,1.8053]
[1756066497863,1.764,4742.7,4741.4,3.2078]
[1756066498066,1.764,4742.7,4740.8,0.4119]
[1756066498067,3.9876,4741.4,4740.8,1.50788453]
[1756066498271,3.9876,4741.4,4740.4,3.2078]
[1756066498464,2.2236,4741.5,4740.9,3.2078]
[1756066498669,3.9876,4741.5,4740.9,3.2078]
[1756066499269,1.1598,4741.5,4740.9,3.2078]
[1756066499778,2.9238,4741.5,4741.4,3.2078]
[1756066500072,1.1598,4742.4,4741.4,3.6197]
[1756066500373,2.8278,4742.3,4741.4,3.2078]
[1756066500671,2.9238,4740.1,4738.8,1.50788453]
[1756066500871,2.9238,4738.7,4738.6,1.50788453]
[1756066501076,1.764,4738.5,4738.4,1.50571554]
[1756066501275,6.1316,4738.5,4737.8,1.88485567]
[1756066501568,1.7851,4738.2,4736.9,1.50522325]
[1756066501763,1.1598,4737.2,4736.5,1.50522325]
[1756066501966,1.1598,4737.2,4736.4,1.50522325]
[1756066502170,1.0638,4737.1,4735.6,3.2078]
[1756066502468,1.1598,4737.2,4736.3,3.2078]
[1756066502669,3.2078,4736.8,4735.4,3.2078]
[1756066502872,1.1598,4737.2,4736.5,3.2078]
[1756066503173,1.1598,4737.2,4735.9,1.8189]
[1756066503174,1.1598,4739.0,4737.4,1.0457]
[1756066503368,30.378,4741.4,4736.6,6.70809988]
[1756066503369,1.1598,4739.7,4738.7,3.2078]
[1756066503571,1.1598,4739.7,4738.2,1.0457]
[1756066503967,4.9718,4739.6,4738.2,1.0457]
[1756066504167,3.2078,4740.1,4739.0,1.46781]
[1756066504366,1.1598,4740.6,4740.0,3.2078]
[1756066504575,1.1598,4741.7,4740.5,3.62977]
[1756066504874,4.9718,4742.9,4741.7,1.0457]
[1756066505171,1.764,4743.9,4742.4,1.0457]
[1756066505371,1.764,4743.9,4743.2,3.2078]
[1756066505578,1.764,4743.9,4743.3,3.2078]
[1756066505874,3.2078,4744.0,4743.3,4.2535]
[1756066506072,1.1598,4744.2,4743.8,3.2078]
[1756066506372,3.2078,4744.8,4743.8,3.2078]
[1756066506677,4.9718,4745.7,4744.7,3.2078]
[1756066506870,3.2078,4745.7,4744.0,2.8646]
[1756066507071,3.9876,4745.6,4744.0,2.8646]
[1756066507272,30.389,4747.3,4743.1,1.0401]
[1756066507273,1.0848,4744.8,4743.1,2.859]
[1756066507478,1.1598,4744.7,4743.1,5.0267]
[1756066507773,1.1598,4745.6,4743.9,1.46177]
[1756066508076,3.2078,4745.7,4744.3,1.0457]
[1756066508274,3.2078,4745.7,4744.4,1.8189]
[1756066508577,1.1598,4745.6,4744.4,1.8189]
[1756066508775,2.8278,4745.5,4743.6,1.50522325]
[1756066508967,3.2078,4745.0,4743.5,1.0457]
[1756066509272,3.2078,4745.0,4742.2,3.2078]
[1756066509273,1.764,4744.2,4742.8,1.50522325]
[1756066509476,1.764,4744.2,4742.6,1.88485567]
[1756066509477,3.2078,4743.9,4742.7,1.50522325]
[1756066509680,1.1598,4743.8,4742.8,1.50522325]
[1756066509972,1.1598,4743.8,4742.9,1.50522325]
[1756066510168,4.9718,4744.5,4742.5,1.50522325]
[1756066510169,1.764,4743.7,4742.5,1.50522325]
[1756066510368,1.764,4743.7,4741.5,1.8189]
[1756066510369,1.1598,4742.8,4740.8,1.8189]
[1756066510572,1.764,4742.3,4740.5,1.50522325]
[1756066510775,1.764,4742.3,4741.7,1.0457]
[1756066511078,1.1598,4742.4,4741.0,3.2078]
[1756066511466,3.2078,4743.0,4741.1,5.92069653]
[1756066511668,1.1598,4743.4,4741.4,1.0457]
[1756066511866,4.9718,4743.9,4742.2,1.0457]
[1756066512271,1.764,4743.0,4741.4,3.73248985]
[1756066512483,5.4314,4742.9,4741.4,1.0457]
[1756066512977,3.2078,4742.9,4741.8,0.42185]
[1756066513172,1.1598,4743.7,4742.1,1.0401]
[1756066513366,4.3676,4743.7,4742.1,1.0401]
[1756066513574,4.3676,4743.7,4742.4,5.0267]
[1756066513868,3.2078,4744.3,4742.9,3.9047]
[1756066514068,3.2078,4744.9,4743.8,1.0457]
[1756066514373,3.2078,4744.9,4743.9,1.8189]
[1756066514572,3.2078,4744.9,4744.0,3.2078]
[1756066514766,3.2078,4744.9,4744.1,2.8646]
[1756066514972,3.2078,4745.7,4744.4,0.42163]
[1756066515173,3.2078,4745.7,4744.6,2.8646]
[1756066517175,3.2078,4745.7,4744.8,2.859]
[1756066517370,1.1598,4747.1,4745.7,1.0457]
[1756066517371,3.2078,4746.2,4745.7,1.0457]
[1756066517577,3.2078,4746.9,4745.6,3.9047]
[1756066517877,3.2078,4747.8,4746.4,1.0457]
[1756066518077,1.0638,4748.9,4747.0,0.4214]
[1756066518078,3.2078,4748.3,4747.0,0.4214]
[1756066518375,4.3676,4748.9,4747.2,1.0457]
[1756066518579,3.2078,4749.5,4747.9,4.2535]
[1756066518777,3.2078,4749.5,4748.0,1.0457]
[1756066519091,3.2078,4750.5,4749.4,3.2078]
[1756066519378,1.0638,4751.0,4749.5,1.0457]
[1756066519379,3.2078,4751.0,4749.5,1.0457]
[1756066519581,3.2078,4751.0,4749.5,3.74670762]
[1756066519778,3.2078,4750.4,4749.5,1.0457]
[1756066519974,1.1598,4752.3,4749.9,1.0457]
[1756066520179,3.2078,4752.0,4750.3,3.2078]
[1756066520384,3.2078,4752.0,4751.0,0.42104]
[1756066520577,3.2078,4752.5,4751.3,1.0457]
[1756066520780,3.2078,4753.0,4751.3,1.0457]
[1756066521084,3.2078,4752.9,4751.3,1.0457]
[1756066521282,3.2078,4752.9,4751.4,2.68843607]
[1756066521580,3.2078,4752.9,4751.4,3.10944607]
[1756066521885,3.2078,4752.9,4751.4,2.68843607]
[1756066522085,3.2288,4752.9,4751.3,1.0457]
[1756066522281,1.1598,4752.3,4751.3,1.0457]
[1756066522586,1.1598,4752.3,4751.4,2.76611792]
[1756066522788,1.1598,4752.3,4751.3,1.0457]
[1756066523184,1.1598,4752.3,4750.7,30.366]
[1756066523484,1.1598,4752.3,4751.5,1.0457]
[1756066523687,1.1598,4752.3,4751.2,1.0457]
[1756066523983,3.2078,4751.9,4751.2,1.0457]
[1756066524192,3.2078,4751.4,4750.4,1.0457]
[1756066524381,3.2078,4751.4,4748.6,0.15396979]
[1756066524382,3.2288,4750.9,4749.6,3.2078]
[1756066524581,3.2078,4750.4,4749.5,1.0457]
[1756066524983,1.1598,4750.8,4749.5,1.0457]
[1756066525282,1.1598,4751.5,4749.7,1.0457]
[1756066525590,1.0638,4751.4,4749.7,1.0457]
[1756066525783,3.2078,4750.8,4749.8,2.70045993]
[1756066526082,1.1598,4750.7,4749.7,1.0457]
[1756066526284,3.2078,4750.9,4749.9,2.73529458]
[1756066526682,4.3676,4750.9,4749.7,1.0457]
[1756066527283,1.1598,4750.9,4749.7,1.0457]
[1756066527479,1.764,4751.3,4750.0,0.42113]
[1756066527683,1.764,4751.3,4749.8,2.77915165]
[1756066527884,1.764,4751.3,4750.1,3.20028165]
[1756066528088,4.3676,4751.6,4750.5,0.42109]
[1756066528280,1.7345,4751.5,4750.4,3.2078]
[1756066528478,1.7345,4751.5,4750.2,0.9925]
[1756066528479,2.765,4751.5,4750.2,0.9925]
[1756066529090,1.1598,4751.6,4750.3,2.72678523]
[1756066529289,1.1598,4751.6,4750.3,6.35569523]
[1756066529484,1.1598,4751.6,4750.3,5.93458523]
[1756066529684,1.1598,4751.6,4750.6,0.42108]
[1756066529886,1.1598,4751.6,4750.3,5.93458523]
[1756066530182,1.1598,4751.6,4750.3,3.62891]
[1756066530387,1.1598,4751.6,4750.5,0.42109]
[1756066530585,1.1598,4751.6,4750.4,2.74100491]
[1756066530792,1.1598,4751.6,4750.6,2.74100491]
[1756066530986,1.1598,4751.6,4750.7,0.9925]
[1756066531189,3.2078,4751.7,4750.7,0.9925]
[1756066531389,3.2078,4751.7,4750.7,3.79004154]
[1756066531693,2.1368,4752.4,4751.3,0.9925]
[1756066531694,1.1063,4752.4,4751.3,0.9925]
[1756066531893,1.1063,4752.4,4751.7,3.2078]
[1756066532194,1.7345,4753.1,4751.8,3.72963963]
[1756066532391,5.3446,4753.2,4751.8,3.72963963]
[1756066532392,3.2078,4753.2,4753.0,0.42087]
[1756066532586,3.2078,4753.9,4753.1,0.9925]
[1756066532786,3.2078,4753.9,4753.2,0.9925]
[1756066533095,3.2078,4756.4,4754.4,0.9925]